fUSD/lending_fUSD_20251204
["ID","MTS","AMOUNT","RATE_DAILY","PERIOD"]
[396232166,1764850250134,-250.0,0.000192,2]
[396232167,1764850250144,-250.0,0.000192,2]
[396232168,1764850250153,-250.0,0.000192,2]
[396232169,1764850250162,-250.0,0.000192,2]
[396232170,1764850250172,-250.0,0.000192,2]
[396232171,1764850250181,-250.0,0.000192,2]
[396232172,1764850250190,-676.04,0.00019211,2]
[396232173,1764850250200,-191.263587,0.00019212,2]
[396232174,1764850250209,-209.94573,0.00019212,2]
[396232175,1764850250218,-209.94573,0.00019212,2]
[396232176,1764850250227,-209.94573,0.00019212,2]
[396232177,1764850250236,-209.94573,0.00019212,2]
[396232178,1764850250245,-250.318239,0.00019212,2]
[396232179,1764850250254,-250.318239,0.00019212,2]
[396232180,1764850250263,-250.318239,0.00019212,2]
[396232181,1764850250272,-250.318239,0.00019212,2]
[396232182,1764850250283,-191.908777,0.00019212,2]
[396232183,1764850250292,-191.908777,0.00019212,2]
[396232184,1764850250301,-191.908777,0.00019212,2]
[396232185,1764850250310,-191.908777,0.00019212,2]
[396232186,1764850250319,-151.0,0.00019212,2]
[396232187,1764850250328,-151.0,0.00019212,2]
[396232188,1764850250337,-151.0,0.00019212,2]
[396232189,1764850250347,-153.212664,0.00019212,2]
[396232190,1764850250356,-151.0,0.00019212,2]
[396232191,1764850250366,-151.0,0.00019212,2]
[396232192,1764850250375,-151.0,0.00019212,2]
[396232193,1764850250384,-247.679944,0.00019212,2]
[396232194,1764850250393,-151.0,0.00019212,2]
[396232195,1764850250403,-998.632693,0.00019212,2]
[396232196,1764850250412,-151.0,0.00019212,2]
[396232197,1764850250421,-998.632693,0.00019212,2]
[396232198,1764850250430,-151.0,0.00019212,2]
[396232199,1764850250440,-998.632693,0.00019212,2]
[396232200,1764850250449,-998.632693,0.00019212,2]
[396232201,1764850250458,-160.456804,0.00019212,2]
[396232202,1764850250468,-151.0,0.00019212,2]
[396232203,1764850250478,-6003.327466,0.00019212,2]
[396232204,1764850250487,-151.0,0.00019212,2]
[396232205,1764850250496,-6003.327466,0.00019212,2]
[396232206,1764850250506,-151.0,0.00019212,2]
[396232207,1764850250515,-6003.327466,0.00019212,2]
[396232208,1764850250525,-151.0,0.00019212,2]
[396232209,1764850250534,-6003.327466,0.00019212,2]
[396232210,1764850250543,-229.845053,0.00019212,2]
[396232211,1764850250553,-761.023688,0.00019212,2]
[396232212,1764850250562,-761.023688,0.00019212,2]
[396232213,1764850250571,-761.023688,0.00019212,2]
[396232214,1764850250581,-761.023688,0.00019212,2]
[396232215,1764850250590,-151.0,0.00019212,2]
[396232216,1764850250599,-151.0,0.00019212,2]
[396232217,1764850250609,-151.0,0.00019212,2]
[396232218,1764850250618,-151.0,0.00019212,2]
[396232219,1764850250630,-151.0,0.00019212,2]
[396232220,1764850250639,-291.557332,0.00019212,2]
[396232221,1764850250649,-291.557332,0.00019212,2]
[396232222,1764850250659,-291.557332,0.00019212,2]
[396232223,1764850250668,-151.0,0.00019212,2]
[396232224,1764850250678,-291.557332,0.00019212,2]
[396232225,1764850250688,-151.0,0.00019212,2]
[396232226,1764850250698,-151.0,0.00019212,2]
[396232227,1764850250707,-151.0,0.00019212,2]
[396232228,1764850250717,-151.0,0.00019212,2]
[396232229,1764850250730,-151.0,0.00019212,2]
[396232230,1764850250739,-385.286627,0.00019212,2]
[396232231,1764850250750,-385.286627,0.00019212,2]
[396232232,1764850250761,-385.286627,0.00019212,2]
[396232233,1764850250770,-385.286627,0.00019212,2]
[396232234,1764850250780,-16220.4857662,0.00019212,2]
[396232235,1764850250789,-59433.7186202,0.00019212,2]
[396232236,1764850250802,-17040.0703509,0.00019212,2]
[396232237,1764850250811,-773.4084064,0.00019212,2]
[396232238,1764850250820,-408.4,0.00019246,2]
[396232239,1764850250830,-2726.0,0.00019277,2]
[396232240,1764850250841,-501.0,0.00019319,2]
[396232241,1764850250850,-1773.0,0.00019319,2]
[396232242,1764850250859,-166.66,0.00019327,2]
[396232243,1764850250869,-297.50539818,0.00019334,2]
[396232244,1764850250879,-2726.0,0.00019349,2]
[396232245,1764850250888,-348.16,0.00019411,2]
[396232246,1764850250898,-713.97283296,0.00019436,2]
[396232247,1764850250907,-2340.0,0.00019436,2]
[396232248,1764850250917,-151.0,0.00019436,2]
[396232249,1764850250926,-1000.0,0.00019438,2]
[396232250,1764850250935,-206.55,0.0001944,2]
[396232251,1764850250945,-501.0,0.00019456,2]
[396232252,1764850250955,-1773.0,0.00019456,2]
[396232253,1764850250964,-157.75281607,0.00019483,2]
[396232254,1764850250974,-1734.51622133,0.00019519,2]
[396232255,1764850250983,-177.91,0.00019562,2]
[396232256,1764850250992,-287.77,0.00019587,2]
[396232257,1764850251002,-501.0,0.00019593,2]
[396232258,1764850251011,-1773.0,0.00019593,2]
[396232259,1764850251022,-162.0883625,0.00019666,2]
[396232260,1764850251031,-12778.249773,0.00019684,2]
[396232261,1764850251041,-6826.7251186,0.00019684,2]
[396232262,1764850251051,-348.17,0.00019685,2]
[396232263,1764850251060,-3619.2795867,0.00019706,2]
[396232264,1764850251069,-13261.4551539,0.00019706,2]
[396232265,1764850251079,-3802.1536263,0.00019706,2]
[396232266,1764850251090,-172.5707415,0.00019706,2]
[396232267,1764850251101,-156.587,0.00019726,2]
[396232268,1764850251110,-501.0,0.0001973,2]
[396232269,1764850251121,-1773.0,0.0001973,2]
[396232270,1764850251131,-13217.4339281,0.00019776,2]
[396232271,1764850251141,-501.0,0.00019867,2]
[396232272,1764850251151,-1773.0,0.00019867,2]
[396232273,1764850251161,-166.66,0.0001989,2]
[396232274,1764850251170,-4550.6136345,0.000199,3]
[396232275,1764850251180,-250.0,0.000199,2]
[396232276,1764850251190,-480.06109419,0.000199,3]
[396232277,1764850251199,-500.0,0.000199,5]
[396232278,1764850251208,-151.29932748,0.00019973,2]
[396232279,1764850251218,-190.56,0.00019983,2]
[396232280,1764850251227,-740.38982778,0.00019984,2]
[396232281,1764850251236,-2340.0,0.00019984,2]
[396232282,1764850251245,-151.0,0.00019984,2]
[396232283,1764850251254,-250.0,0.0001999,2]
[396232284,1764850251263,-250.0,0.0001999,2]
[396232285,1764850251272,-676.04,0.00019999,2]
[396232286,1764850251281,-578.77667957,0.00019999,2]
[396232287,1764850251291,-10862.67530809,0.0002,2]
[396232288,1764850251299,-500.0,0.0002,3]
[396232289,1764850251308,-865.97238361,0.0002,5]
[396232290,1764850251318,-15867.27833996,0.0002,5]
[396232291,1764850251327,-771.329196,0.0002,2]
[396232292,1764850251336,-3950.0,0.0002,2]
[396232293,1764850251345,-73607.70844627,0.0002,2]
[396232294,1764850251354,-7251.90251763,0.0002,2]
[396232295,1764850251363,-1287.78072263,0.0002,2]
[396232296,1764850251373,-1039.45352697,0.0002,2]
[396232297,1764850251382,-2848.52996633,0.0002,2]
[396232298,1764850251392,-414.54289206,0.0002,2]
[396232299,1764850251402,-12857.70282579,0.0002,2]
[396232300,1764850251413,-216.52,0.0002,2]
[396232301,1764850251423,-205.27,0.0002,2]
[396232302,1764850251433,-200.0,0.0002,2]
[396232303,1764850251443,-501.0,0.00020004,2]
[396232304,1764850251461,-1773.0,0.00020004,2]
[396232305,1764850251473,-8720.0,0.0002001,2]
[396232306,1764850251482,-167.56,0.00020013,2]
[396232307,1764850251491,-150.0,0.00020049,2]
[396232308,1764850251500,-253.0,0.00020049,2]
[396232309,1764850251510,-6510.0,0.00020049,2]
[396232310,1764850251520,-4706.0,0.00020049,2]
[396232311,1764850251529,-1000.0,0.00020116,2]
[396232312,1764850251539,-515.64917893,0.00020141,2]
[396232313,1764850251548,-1773.0,0.00020141,2]
[396232314,1764850251558,-653.52,0.00020187,2]
[396232315,1764850251567,-275.52043557,0.00020194,2]
[396232316,1764850251577,-311.1,0.00020255,2]
[396232317,1764850251587,-309.29654756,0.00020255,2]
[396232318,1764850251596,-334.5472959,0.00020255,2]
[396232319,1764850251605,-162.380719,0.00020274,2]
[396232320,1764850251615,-636.68,0.00020278,2]
[396232321,1764850251625,-209.94573,0.00020284,2]
[396232322,1764850251635,-209.94573,0.00020284,2]
[396232323,1764850251645,-209.94573,0.00020284,2]
[396232324,1764850251655,-209.94573,0.00020284,2]
[396232325,1764850251664,-250.318239,0.00020284,2]
[396232326,1764850251674,-250.318239,0.00020284,2]
[396232327,1764850251683,-250.318239,0.00020284,2]
[396232328,1764850251693,-250.318239,0.00020284,2]
[396232329,1764850251703,-191.908777,0.00020284,2]
[396232330,1764850251712,-191.908777,0.00020284,2]
[396232331,1764850251726,-191.908777,0.00020284,2]
[396232332,1764850251737,-191.908777,0.00020284,2]
[396232333,1764850251747,-2949.2081491,0.00020396,2]
[396232334,1764850251760,-1000.0,0.00020433,2]
[396232335,1764850251771,-1055.17132751,0.00020459,2]
[396232336,1764850251781,-157.75281607,0.00020509,2]
[396232337,1764850251791,-206.55,0.00020526,2]
[396232338,1764850251801,-382.21365128,0.00020532,2]
[396232339,1764850251812,-2340.0,0.00020532,2]
[396232340,1764850251822,-153.24536797,0.00020532,2]
[396232341,1764850251831,-191.08,0.00020548,2]
[396232342,1764850251841,-21405.35,0.00020548,2]
[396232343,1764850251851,-151.0,0.00020548,2]
[396232344,1764850251861,-151.0,0.00020548,2]
[396232345,1764850251871,-151.0,0.00020548,2]
[396232346,1764850251881,-151.0,0.00020548,2]
[396232347,1764850251891,-151.0,0.00020548,2]
[396232348,1764850251901,-151.0,0.00020548,2]
[396232349,1764850251911,-231.673302,0.00020548,2]
[396232350,1764850251921,-562.71132894,0.00020692,2]
[396232351,1764850251931,-22540.68009874,0.000207,2]
[396232352,1764850251940,-2000.0,0.000207,2]
[396232353,1764850251950,-151.0,0.000207,2]
[396232354,1764850251960,-151.0,0.00020722,2]
[396232355,1764850251970,-298.37113,0.00020722,2]
[396232356,1764850251980,-151.0,0.00020722,2]
[396232357,1764850251990,-151.0,0.00020722,2]
[396232358,1764850251999,-166.678176,0.00020722,2]
[396232359,1764850252010,-12778.249773,0.00020728,2]
[396232360,1764850252020,-6826.7251186,0.00020728,2]
[396232361,1764850252030,-191.85,0.00020765,2]
[396232362,1764850252040,-1000.0,0.00020795,2]
[396232363,1764850252050,-206.54658412,0.00020797,2]
[396232364,1764850252059,-168.3888056,0.00020822,2]
[396232365,1764850252069,-167.56,0.00020847,2]
[396232366,1764850252079,-150.0,0.00020999,2]
[396232367,1764850252088,-150.0,0.00020999,2]
[396232368,1764850252099,-610.0,0.00020999,2]
[396232369,1764850252108,-3444.0,0.00020999,2]
[396232370,1764850252120,-1006.725,0.00020999,2]
[396232371,1764850252130,-1259.0,0.00020999,2]
[396232372,1764850252139,-614.0,0.00020999,2]
[396232373,1764850252317,-1194.0,0.00020999,2]
[396232374,1764850252327,-909.0,0.00020999,2]
[396232375,1764850252337,-275.204467,0.00020999,2]
[396232376,1764850252346,-998.632693,0.00020999,2]
[396232377,1764850252356,-164.189347,0.00020999,2]
[396232378,1764850252365,-998.632693,0.00020999,2]
[396232379,1764850252376,-998.632693,0.00020999,2]
[396232380,1764850252386,-151.0,0.00020999,2]
[396232381,1764850252396,-998.632693,0.00020999,2]
[396232382,1764850252407,-151.0,0.00020999,2]
[396232383,1764850252417,-151.0,0.00020999,2]
[396232384,1764850252427,-6003.327466,0.00020999,2]
[396232385,1764850252436,-151.0,0.00020999,2]
[396232386,1764850252447,-6003.327466,0.00020999,2]
[396232387,1764850252456,-151.0,0.00020999,2]
[396232388,1764850252467,-6003.327466,0.00020999,2]
[396232389,1764850252477,-161.222699,0.00020999,2]
[396232390,1764850252487,-6003.327466,0.00020999,2]
[396232391,1764850252496,-761.023688,0.00020999,2]
[396232392,1764850252508,-761.023688,0.00020999,2]
[396232393,1764850252518,-761.023688,0.00020999,2]
[396232394,1764850252528,-761.023688,0.00020999,2]
[396232395,1764850252537,-151.0,0.00020999,2]
[396232396,1764850252547,-239.505611,0.00020999,2]
[396232397,1764850252556,-151.0,0.00020999,2]
[396232398,1764850252566,-151.0,0.00020999,2]
[396232399,1764850252576,-151.0,0.00020999,2]
[396232400,1764850252585,-291.557332,0.00020999,2]
[396232401,1764850252595,-291.557332,0.00020999,2]
[396232402,1764850252606,-291.557332,0.00020999,2]
[396232403,1764850252616,-255.898729,0.00020999,2]
[396232404,1764850252625,-291.557332,0.00020999,2]
[396232405,1764850252635,-151.0,0.00020999,2]
[396232406,1764850252645,-151.0,0.00020999,2]
[396232407,1764850252655,-151.0,0.00020999,2]
[396232408,1764850252665,-151.0,0.00020999,2]
[396232409,1764850252674,-151.0,0.00020999,2]
[396232410,1764850252684,-156.891547,0.00020999,2]
[396232411,1764850252693,-385.286627,0.00020999,2]
[396232412,1764850252703,-385.286627,0.00020999,2]
[396232413,1764850252712,-385.286627,0.00020999,2]
[396232414,1764850252725,-385.286627,0.00020999,2]
[396232415,1764850252734,-20000.0,0.00021,2]
[396232416,1764850252744,-1186.48878654,0.00021,2]
[396232417,1764850252753,-195.84673444,0.00021,2]
[396232418,1764850252763,-350.0,0.00021,2]
[396232419,1764850252772,-501.48665946,0.00021,2]
[396232420,1764850252782,-2474.08,0.00021013,2]
[396232421,1764850252791,-191.85,0.00021022,2]
[396232422,1764850252803,-12449.02,0.00021068,2]
[396232423,1764850252815,-2340.0,0.0002108,2]
[396232424,1764850252825,-2010.46929123,0.000212,2]
[396232425,1764850252836,-151.86929077,0.0002127,2]
[396232426,1764850252845,-191.84751316,0.00021278,2]
[396232427,1764850252855,-190.56,0.00021323,2]
[396232428,1764850252865,-6344.31,0.0002137,2]
[396232429,1764850252875,-174.61919141,0.0002137,2]
[396232430,1764850252886,-250.0,0.000214,2]
[396232431,1764850252896,-250.0,0.000214,2]
[396232432,1764850252906,-250.0,0.000214,2]
[396232433,1764850252916,-250.0,0.000214,2]
[396232434,1764850252926,-250.0,0.000214,2]
[396232435,1764850252936,-250.0,0.000214,2]
[396232436,1764850252947,-250.0,0.000214,2]
[396232437,1764850252957,-250.0,0.000214,2]
[396232438,1764850252967,-250.0,0.000214,2]
[396232439,1764850252978,-250.0,0.000214,2]
[396232440,1764850252988,-250.0,0.000214,2]
[396232441,1764850252999,-250.0,0.000214,2]
[396232442,1764850253008,-250.0,0.000214,2]
[396232443,1764850253018,-382.3,0.000214,2]
[396232444,1764850253027,-220.88357112,0.000215,2]
[396232445,1764850253036,-157.75281607,0.00021534,2]
[396232446,1764850253046,-1018.42737173,0.0002156,2]
[396232447,1764850253055,-150.0,0.00021598,2]
[396232448,1764850253065,-320.74051982,0.00021624,2]
[396232449,1764850253079,-346.92554585,0.00021624,2]
[396232450,1764850253089,-151.0,0.00021626,2]
[396232451,1764850253099,-190.56,0.00021647,2]
[396232452,1764850253110,-167.56,0.0002168,2]
[396232453,1764850253120,-12778.249773,0.00021771,2]
[396232454,1764850253130,-6826.7251186,0.00021771,2]
[396232455,1764850253140,-5000.0,0.00021918,2]
[396232456,1764850253150,-203.105157,0.00021918,2]
[396232457,1764850253160,-203.105157,0.00021918,2]
[396232458,1764850253170,-203.105157,0.00021918,2]
[396232459,1764850253179,-203.105157,0.00021918,2]
[396232460,1764850253189,-203.105157,0.00021918,2]
[396232461,1764850253199,-203.105157,0.00021918,2]
[396232462,1764850253210,-203.105157,0.00021918,2]
[396232463,1764850253220,-203.105157,0.00021918,2]
[396232464,1764850253229,-203.105157,0.00021918,2]
[396232465,1764850253239,-203.105157,0.00021918,2]
[396232466,1764850253248,-203.105157,0.00021918,2]
[396232467,1764850253258,-203.105157,0.00021918,2]
[396232468,1764850253267,-203.105157,0.00021918,2]
[396232469,1764850253277,-203.105157,0.00021918,2]
[396232470,1764850253286,-203.105157,0.00021918,2]
[396232471,1764850253296,-203.105157,0.00021918,2]
[396232472,1764850253306,-500.0,0.00021918,2]
[396232473,1764850253316,-150.44184217,0.00021918,2]
[396232474,1764850253326,-1100.0,0.0002197,2]
[396232475,1764850253336,-700.0,0.0002197,2]
[396232476,1764850253346,-676.04,0.00021999,2]
[396232477,1764850253356,-4156.6857968,0.00022,2]
[396232478,1764850253366,-581.13893451,0.00022,4]
[396232479,1764850253376,-4123.17549454,0.00022,2]
[396232480,1764850253385,-160.97,0.00022,2]
[396232481,1764850253396,-254.72910132,0.00022,2]
[396232482,1764850253405,-15175.04,0.00022,7]
[396232483,1764850253415,-150.0,0.00022,2]
[396232484,1764850253425,-150.0,0.00022,2]
[396232485,1764850253434,-200.0,0.00022,2]
[396232486,1764850253444,-505.48007772,0.00022055,2]
[396232487,1764850253453,-491.71381968,0.000221,2]
[396232488,1764850253463,-238.92808133,0.0002211,2]
[396232489,1764850253473,-150.66,0.00022192,2]
[396232490,1764850253483,-150.62,0.00022192,2]
[396232491,1764850253493,-231.56,0.00022192,2]
[396232492,1764850253503,-150.0,0.00022192,2]
[396232493,1764850253512,-150.0,0.00022192,2]
[396232494,1764850253522,-150.0,0.00022192,2]
[396232495,1764850253531,-150.0,0.00022192,2]
[396232496,1764850253541,-1000.0,0.00022291,2]
[396232497,1764850253551,-636.68,0.00022305,2]
[396232498,1764850253560,-178.2,0.000224,14]
[396232499,1764850253570,-35311.41533479,0.000225,2]
[396232500,1764850253580,-167.56,0.00022514,2]
[396232501,1764850253590,-275.52043557,0.00022535,2]
[396232502,1764850253600,-157.75281607,0.0002256,2]
[396232503,1764850253609,-520.20323945,0.0002271,2]
[396232504,1764850253619,-12778.249773,0.00022814,2]
[396232505,1764850253629,-6826.7251186,0.00022814,2]
[396232506,1764850253638,-332.60791905,0.00022993,2]
[396232507,1764850253648,-359.76179104,0.00022993,2]
[396232508,1764850253659,-1002.03056646,0.00023,2]
[396232509,1764850253669,-20000.0,0.00023,2]
[396232510,1764850253679,-245.0,0.00023,7]
[396232511,1764850253689,-400.0,0.00023,2]
[396232512,1764850253699,-150.0,0.00023,2]
[396232513,1764850253709,-150.0,0.00023,2]
[396232514,1764850253721,-150.0,0.00023014,2]
[396232515,1764850253731,-150.0,0.00023014,2]
[396232516,1764850253741,-253.0,0.00023049,2]
[396232517,1764850253752,-4706.0,0.00023049,2]
[396232518,1764850253763,-2571.39541418,0.000231,2]
[396232519,1764850253773,-200.0,0.000235,2]
[396232520,1764850253782,-157.75281607,0.00023585,2]
[396232521,1764850253793,-300.0,0.00023836,2]
[396232522,1764850253802,-150.0,0.00023836,2]
[396232523,1764850253812,-300.43,0.00023836,2]
[396232524,1764850253822,-150.0,0.00023836,2]
[396232525,1764850253832,-150.0,0.00023836,2]
[396232526,1764850253842,-150.0,0.00023836,2]
[396232527,1764850253852,-150.0,0.00023836,2]
[396232528,1764850253861,-150.0,0.00023836,2]
[396232529,1764850253871,-12778.249773,0.00023857,2]
[396232530,1764850253881,-6826.7251186,0.00023857,2]
[396232531,1764850253891,-1000.0,0.00023874,2]
[396232532,1764850253900,-15175.04,0.000239,7]
[396232533,1764850253909,-209.94573,0.000239,2]
[396232534,1764850253919,-209.94573,0.000239,2]
[396232535,1764850253929,-209.94573,0.000239,2]
[396232536,1764850253938,-209.94574,0.000239,2]
[396232537,1764850253947,-250.318239,0.000239,2]
[396232538,1764850253957,-250.318239,0.000239,2]
[396232539,1764850253966,-250.318239,0.000239,2]
[396232540,1764850253975,-250.318232,0.000239,2]
[396232541,1764850253985,-150.0,0.00023999,2]
[396232542,1764850253995,-150.0,0.00023999,2]
[396232543,1764850254004,-610.0,0.00023999,2]
[396232544,1764850254013,-3444.0,0.00023999,2]
[396232545,1764850254022,-1259.0,0.00023999,2]
[396232546,1764850254031,-614.0,0.00023999,2]
[396232547,1764850254040,-1194.0,0.00023999,2]
[396232548,1764850254049,-909.0,0.00023999,2]
[396232549,1764850254059,-1015.17583273,0.00024,2]
[396232550,1764850254068,-3600.0,0.00024,2]
[396232551,1764850254078,-16121.08231602,0.00024,2]
[396232552,1764850254087,-20000.0,0.00024,2]
[396232553,1764850254096,-191.908777,0.00024,2]
[396232554,1764850254106,-191.908777,0.00024,2]
[396232555,1764850254114,-191.908777,0.00024,2]
[396232556,1764850254124,-191.908782,0.00024,2]
[396232557,1764850254132,-169.641254,0.00024,2]
[396232558,1764850254141,-200.0,0.00024,2]
[396232559,1764850254150,-200.0,0.00024,2]
[396232560,1764850254159,-164.0,0.00024,7]
[396232561,1764850254168,-1055.17132751,0.00024019,2]
[396232562,1764850254177,-419.40486228,0.0002421,2]
[396232563,1764850254186,-3675.12587855,0.0002421,2]
[396232564,1764850254195,-636.68,0.00024333,2]
[396232565,1764850254205,-344.91441206,0.00024362,2]
[396232566,1764850254217,-373.07297731,0.00024362,2]
[396232567,1764850254226,-151.0,0.00024365,2]
[396232568,1764850254235,-176.584061,0.00024365,2]
[396232569,1764850254244,-151.0,0.00024365,2]
[396232570,1764850254254,-151.0,0.00024365,2]
[396232571,1764850254263,-2000.0,0.000244,2]
[396232572,1764850254272,-210.94522324,0.000244,2]
[396232573,1764850254281,-157.75281607,0.00024611,2]
[396232574,1764850254290,-593.95219598,0.0002465,2]
[396232575,1764850254299,-166.53277711,0.0002465,2]
[396232576,1764850254309,-572.54,0.00024658,30]
[396232577,1764850254318,-1238.93,0.00024658,2]
[396232578,1764850254327,-1000.0,0.00024658,2]
[396232579,1764850254337,-150.0,0.00024658,2]
[396232580,1764850254346,-150.0,0.00024658,2]
[396232581,1764850254356,-150.0,0.00024658,2]
[396232582,1764850254365,-300.0,0.00024658,2]
[396232583,1764850254375,-150.0,0.00024658,2]
[396232584,1764850254384,-150.0,0.00024658,2]
[396232585,1764850254393,-150.0,0.00024658,2]
[396232586,1764850254402,-150.0,0.00024658,2]
[396232587,1764850254412,-150.0,0.00024658,2]
[396232588,1764850254422,-150.0,0.00024658,2]
[396232589,1764850254431,-150.0,0.00024658,2]
[396232590,1764850254441,-300.0,0.00024658,2]
[396232591,1764850254450,-150.0,0.00024658,2]
[396232592,1764850254460,-300.0,0.00024658,2]
[396232593,1764850254469,-150.0,0.00024658,2]
[396232594,1764850254478,-150.0,0.00024658,2]
[396232595,1764850254488,-150.0,0.00024658,2]
[396232596,1764850254498,-150.0,0.00024658,2]
[396232597,1764850254508,-150.0,0.00024658,2]
[396232598,1764850254517,-150.0,0.00024658,2]
[396232599,1764850254527,-150.0,0.00024658,2]
[396232600,1764850254537,-150.0,0.00024658,2]
[396232601,1764850254547,-150.0,0.00024658,2]
[396232602,1764850254557,-150.0,0.00024658,2]
[396232603,1764850254568,-150.0,0.00024658,2]
[396232604,1764850254578,-150.0,0.00024658,2]
[396232605,1764850254593,-150.0,0.00024658,2]
[396232606,1764850254604,-150.0,0.00024658,2]
[396232607,1764850254615,-150.0,0.00024658,2]
[396232608,1764850254625,-150.0,0.00024658,2]
[396232609,1764850254635,-150.0,0.00024658,2]
[396232610,1764850254646,-150.0,0.00024658,2]
[396232611,1764850254657,-500.0,0.00024658,2]
[396232612,1764850254667,-353.3070752,0.00024658,2]
[396232613,1764850254678,-500.0,0.00024658,2]
[396232614,1764850254688,-168.49829835,0.000247,2]
[396232615,1764850254698,-2000.0,0.000248,30]
[396232616,1764850254711,-177769.397896,0.000248,3]
[396232617,1764850254786,-160.743203,0.000248,7]
[396232618,1764850254797,-151.0,0.000248,7]
[396232619,1764850254807,-151.0,0.000248,7]
[396232620,1764850254816,-152.092223,0.000248,7]
[396232621,1764850254826,-291.557332,0.000248,7]
[396232622,1764850254835,-291.557332,0.000248,7]
[396232623,1764850254844,-291.557332,0.000248,7]
[396232624,1764850254853,-291.557327,0.000248,7]
[396232625,1764850254862,-151.0,0.000248,7]
[396232626,1764850254872,-151.0,0.000248,7]
[396232627,1764850254882,-151.0,0.000248,7]
[396232628,1764850254891,-151.0,0.000248,7]
[396232629,1764850254901,-151.0,0.000248,7]
[396232630,1764850254910,-385.286627,0.000248,7]
[396232631,1764850254919,-385.286627,0.000248,7]
[396232632,1764850254928,-385.286627,0.000248,7]
[396232633,1764850254937,-385.286627,0.000248,7]
[396232634,1764850254946,-1000.0,0.00024874,2]
[396232635,1764850254956,-275.52043557,0.00024877,2]
[396232636,1764850254965,-676.04,0.00024899,2]
[396232637,1764850254974,-56892.44222827,0.000249,3]
[396232638,1764850255651,-599.12041431,0.000169,2]
[396232639,1764850255944,-400.87958569,0.000169,2]
[396232640,1764850255956,-150.0,0.0001699,2]
[396232641,1764850255966,-299.13914413,0.00017127,2]
[396232642,1764850255976,-297.64644088,0.00017127,2]
[396232643,1764850255987,-566.489738,0.00019178,2]
[396232644,1764850255997,-566.489738,0.00019178,2]
[396232645,1764850256007,-566.489738,0.00019178,2]
[396232646,1764850256017,-151.0,0.00019178,2]
[396232647,1764850256027,-566.489738,0.00019178,2]
[396232648,1764850256037,-151.0,0.00019212,2]
[396232649,1764850256048,-566.489738,0.00019212,2]
[396232650,1764850256058,-566.489738,0.00019212,2]
[396232651,1764850256068,-566.489738,0.00019212,2]
[396232652,1764850256078,-151.0,0.00019212,2]
[396232653,1764850256087,-566.489738,0.00019212,2]
[396232654,1764850256097,-562.0,0.00020049,2]
[396232655,1764850256107,-151.0,0.00020999,2]
[396232656,1764850256116,-566.489738,0.00020999,2]
[396232657,1764850256126,-566.489738,0.00020999,2]
[396232658,1764850256137,-566.489738,0.00020999,2]
[396232659,1764850256149,-5.80996506,0.00020999,2]
[396232660,1764850256165,-145.19003494,0.00020999,2]
[396232661,1764850256178,-566.489738,0.00020999,2]
[396232662,1764850256188,-151.29,0.00022192,2]
[396232663,1764850256199,-98.06366322,0.00023049,2]
[396232664,1764850256220,-151.0,0.00019178,2]
[396232665,1764850256230,-463.93633678,0.00023049,2]